fUST/lending_fUST_20240222
["ID","MTS","AMOUNT","RATE_DAILY","PERIOD"]
[314711416,1708537841872,-74.84847386,0.00019963,2]
[314711434,1708537843407,-1591.77152614,0.00019963,2]
[314711435,1708537843417,-500.0,0.00019963,2]
[314711436,1708537843426,-951.99,0.00019963,2]
[314711437,1708537843436,-1132.46,0.00019963,2]
[314711438,1708537843445,-500.0,0.00019963,2]
[314711439,1708537843454,-8014.51,0.00019963,2]
[314711440,1708537843464,-2495.32,0.00019963,2]
[314711441,1708537843473,-500.0,0.00019963,2]
[314711442,1708537843482,-7833.34,0.00019963,2]
[314711443,1708537843491,-1034.38,0.00019963,2]
[314711444,1708537843501,-1299.51,0.00019963,2]
[314711445,1708537843513,-651.36,0.00019963,2]
[314711446,1708537843522,-5669.61,0.00019963,2]
[314711447,1708537843531,-367.17307842,0.00019963,2]
[314711448,1708537843540,-711.14,0.00019963,2]
[314711449,1708537843550,-500.0,0.00019963,2]
[314711450,1708537843560,-3187.59,0.00019963,2]
[314711451,1708537843569,-500.0,0.00019964,2]
[314711452,1708537843579,-544.24,0.00019964,2]
[314711453,1708537843588,-895.56,0.00019964,2]
[314711454,1708537843598,-530.29,0.00019964,2]
[314711455,1708537843607,-500.0,0.00019964,2]
[314711456,1708537843616,-500.0,0.00019964,2]
[314711457,1708537843626,-577.46,0.00019964,2]
[314711458,1708537843635,-500.0,0.00019964,2]
[314711459,1708537843645,-500.0,0.00019964,2]
[314711460,1708537843658,-500.0,0.00019964,2]
[314711461,1708537843667,-1996.86,0.00019964,2]
[314711462,1708537843678,-513.87,0.00019964,2]
[314711463,1708537843687,-922.13,0.00019964,2]
[314711464,1708537843697,-500.0,0.00019964,2]
[314711465,1708537843707,-500.0,0.00019964,2]
[314711466,1708537843716,-500.0,0.00019964,2]
[314711467,1708537843725,-500.0,0.00019964,2]
[314711468,1708537843734,-500.0,0.00019964,2]
[314711469,1708537843745,-500.0,0.00019964,2]
[314711470,1708537843756,-1971.02,0.00019964,2]
[314711471,1708537843768,-994.12,0.00019964,2]
[314711472,1708537843778,-1164.22,0.00019964,2]
[314711473,1708537843787,-2416.78,0.00019964,2]
[314711474,1708537843797,-500.0,0.00019964,2]
[314711475,1708537843805,-500.0,0.00019964,2]
[314711476,1708537843815,-500.0,0.00019964,2]
[314711477,1708537843934,-500.0,0.00019964,2]
[314711478,1708537843967,-500.0,0.00019964,2]
[314711479,1708537843977,-500.0,0.00019964,2]
[314711480,1708537843986,-500.0,0.00019964,2]
[314711481,1708537843995,-500.0,0.00019964,2]
[314711482,1708537844005,-1251.84,0.00019964,2]
[314711483,1708537844014,-500.0,0.00019964,2]
[314711484,1708537844024,-531.02,0.00019964,2]
[314711485,1708537844033,-500.0,0.00019965,2]
[314711486,1708537844042,-500.0,0.00019965,2]
[314711487,1708537844051,-500.0,0.00020236,2]
[314711488,1708537844063,-755.78,0.00020237,2]
[314711489,1708537844072,-500.0,0.00020237,2]
[314711490,1708537844081,-500.0,0.00020237,2]
[314711491,1708537844091,-500.0,0.00020237,2]
[314711492,1708537844100,-868.37,0.00020237,2]
[314711493,1708537844110,-500.0,0.00020237,2]
[314711494,1708537844119,-4085.86,0.00020237,2]
[314711495,1708537844128,-692.97,0.00020237,2]
[314711496,1708537844138,-3028.49,0.00020237,2]
[314711497,1708537844147,-500.0,0.00020237,2]
[314711498,1708537844157,-1779.16,0.00020237,2]
[314711499,1708537844166,-1273.98,0.00020237,2]
[314711500,1708537844176,-500.0,0.00020237,2]
[314711501,1708537844185,-500.0,0.00020237,2]
[314711502,1708537844195,-1666.62,0.00020237,2]
[314711503,1708537844204,-500.0,0.00020237,2]
[314711504,1708537844214,-951.99,0.00020237,2]
[314711505,1708537844223,-1132.46,0.00020237,2]
[314711506,1708537844232,-500.0,0.00020237,2]
[314711507,1708537844242,-8014.51,0.00020237,2]
[314711508,1708537844251,-2495.32,0.00020237,2]
[314711509,1708537844263,-500.0,0.00020237,2]
[314711510,1708537844272,-7833.34,0.00020237,2]
[314711511,1708537844281,-1034.38,0.00020237,2]
[314711512,1708537844290,-1299.51,0.00020237,2]
[314711513,1708537844299,-651.36,0.00020237,2]
[314711514,1708537844308,-5669.61,0.00020237,2]
[314711515,1708537844317,-711.14,0.00020237,2]
[314711516,1708537844326,-500.0,0.00020237,2]
[314711517,1708537844335,-3187.59,0.00020237,2]
[314711518,1708537844345,-572.7267041,0.00020238,2]
[314711519,1708537844354,-544.24,0.00020238,2]
[314711520,1708537844363,-895.56,0.00020238,2]
[314711521,1708537844372,-530.29,0.00020238,2]
[314711522,1708537844381,-500.0,0.00020238,2]
[314711523,1708537844391,-500.0,0.00020238,2]
[314711524,1708537844401,-577.46,0.00020238,2]
[314711525,1708537844410,-500.0,0.00020238,2]
[314711526,1708537844419,-500.0,0.00020238,2]
[314711527,1708537844429,-500.0,0.00020238,2]
[314711528,1708537844438,-1996.86,0.00020238,2]
[314711529,1708537844447,-513.87,0.00020238,2]
[314711530,1708537844457,-922.13,0.00020238,2]
[314711531,1708537844466,-500.0,0.00020238,2]
[314711532,1708537844475,-500.0,0.00020238,2]
[314711533,1708537844484,-500.0,0.00020238,2]
[314711534,1708537844494,-500.0,0.00020238,2]
[314711535,1708537844503,-500.0,0.00020238,2]
[314711536,1708537844514,-500.0,0.00020238,2]
[314711537,1708537844523,-1971.02,0.00020238,2]
[314711538,1708537844532,-994.12,0.00020238,2]
[314711539,1708537844542,-1164.22,0.00020238,2]
[314711540,1708537844551,-2416.78,0.00020238,2]
[314711541,1708537844560,-500.0,0.00020238,2]
[314711542,1708537844569,-500.0,0.00020238,2]
[314711543,1708537844578,-500.0,0.00020238,2]
[314711544,1708537844587,-500.0,0.00020238,2]
[314711545,1708537844597,-500.0,0.00020238,2]
[314711546,1708537844606,-500.0,0.00020238,2]
[314711547,1708537844615,-500.0,0.00020238,2]
[314711548,1708537844624,-500.0,0.00020238,2]
[314711549,1708537844633,-1251.84,0.00020238,2]
[314711550,1708537844643,-500.0,0.00020238,2]
[314711551,1708537844654,-531.02,0.00020238,2]
[314711552,1708537844663,-500.0,0.00020239,2]
[314711553,1708537844673,-500.0,0.00020239,2]
[314711554,1708537844683,-500.0,0.0002051,2]
[314711555,1708537844692,-755.78,0.00020511,2]
[314711556,1708537844702,-500.0,0.00020511,2]
[314711557,1708537844711,-500.0,0.00020511,2]
[314711558,1708537844720,-500.0,0.00020511,2]
[314711559,1708537844729,-868.37,0.00020511,2]
[314711560,1708537844738,-500.0,0.00020511,2]
[314711561,1708537844747,-4085.86,0.00020511,2]
[314711562,1708537844758,-692.97,0.00020511,2]
[314711563,1708537844767,-3028.49,0.00020511,2]
[314711564,1708537844777,-500.0,0.00020511,2]
[314711565,1708537844786,-1779.16,0.00020511,2]
[314711566,1708537844795,-1273.98,0.00020511,2]
[314711567,1708537844804,-500.0,0.00020511,2]
[314711568,1708537844813,-500.0,0.00020511,2]
[314711569,1708537844822,-1666.62,0.00020511,2]
[314711570,1708537844831,-500.0,0.00020511,2]
[314711571,1708537844840,-951.99,0.00020511,2]
[314711572,1708537844850,-1132.46,0.00020511,2]
[314711573,1708537844859,-500.0,0.00020511,2]
[314711574,1708537844868,-8014.51,0.00020511,2]
[314711575,1708537844877,-2495.32,0.00020511,2]
[314711576,1708537844887,-500.0,0.00020511,2]
[314711577,1708537844896,-7833.34,0.00020511,2]
[314711578,1708537844905,-1034.38,0.00020511,2]
[314711579,1708537844915,-1299.51,0.00020511,2]
[314711580,1708537844923,-651.36,0.00020511,2]
[314711581,1708537844932,-5669.61,0.00020511,2]
[314711582,1708537844941,-711.14,0.00020511,2]
[314711583,1708537844951,-500.0,0.00020511,2]
[314711584,1708537844960,-3187.59,0.00020511,2]
[314711585,1708537844969,-544.24,0.00020512,2]
[314711586,1708537844979,-895.56,0.00020512,2]
[314711587,1708537844988,-530.29,0.00020512,2]
[314711588,1708537844997,-500.0,0.00020512,2]
[314711589,1708537845008,-500.0,0.00020512,2]
[314711590,1708537845017,-577.46,0.00020512,2]
[314711591,1708537845026,-500.0,0.00020512,2]
[314711592,1708537845035,-500.0,0.00020512,2]
[314711593,1708537845045,-383.87174086,0.00020512,2]
[314711594,1708537845054,-1996.86,0.00020512,2]
[314711595,1708537845064,-513.87,0.00020512,2]
[314711596,1708537845073,-922.13,0.00020512,2]
[314711597,1708537845083,-500.0,0.00020512,2]
[314711598,1708537845093,-500.0,0.00020512,2]
[314711599,1708537845101,-500.0,0.00020512,2]
[314711600,1708537845111,-500.0,0.00020512,2]
[314711601,1708537845120,-500.0,0.00020512,2]
[314711602,1708537845130,-500.0,0.00020512,2]
[314711603,1708537845139,-1971.02,0.00020512,2]
[314711604,1708537845148,-994.12,0.00020512,2]
[314711605,1708537845157,-1164.22,0.00020512,2]
[314711606,1708537845167,-2416.78,0.00020512,2]
[314711607,1708537845176,-500.0,0.00020512,2]
[314711608,1708537845185,-500.0,0.00020512,2]
[314711609,1708537845195,-576.10239688,0.00020512,2]
[314711610,1708537845204,-500.0,0.00020512,2]
[314711611,1708537845213,-500.0,0.00020512,2]
[314711612,1708537845221,-500.0,0.00020512,2]
[314711613,1708537845230,-500.0,0.00020512,2]
[314711614,1708537845239,-500.0,0.00020512,2]
[314711615,1708537845248,-1251.84,0.00020512,2]
[314711616,1708537845258,-500.0,0.00020512,2]
[314711617,1708537845266,-531.02,0.00020512,2]
[314711618,1708537845275,-500.0,0.00020513,2]
[314711619,1708537845284,-500.0,0.00020513,2]
[314711620,1708537845293,-5000.0,0.00020533,2]
[314711621,1708537845302,-26258.22218518,0.00020533,2]
[314711622,1708537845311,-27946.3916618,0.00020533,2]
[314711623,1708537845320,-5000.0,0.00020533,2]
[314711624,1708537845329,-4594.12855915,0.00020533,2]
[314711625,1708537845338,-5000.0,0.00020533,2]
[314711626,1708537845346,-27111.39910484,0.00020533,2]
[314711627,1708537845356,-300.0,0.00020678,2]
[314711628,1708537845365,-580.0,0.000207,2]
[314711629,1708537845374,-23078.61397634,0.00020722,2]
[314711630,1708537845384,-1629.5730381,0.00020722,2]
[314711631,1708537845393,-153.0,0.0002074,2]
[314711632,1708537845403,-153.0,0.0002074,2]
[314711633,1708537845412,-153.0,0.0002074,2]
[314711634,1708537845421,-153.0,0.0002074,2]
[314711635,1708537845430,-153.0,0.0002074,2]
[314711636,1708537845439,-153.0,0.0002074,2]
[314711637,1708537845448,-153.0,0.0002074,2]
[314711638,1708537845457,-153.0,0.0002074,2]
[314711639,1708537845466,-153.0,0.0002074,2]
[314711640,1708537845475,-153.0,0.0002074,2]
[314711641,1708537845485,-153.0,0.0002074,2]
[314711642,1708537845494,-153.0,0.0002074,2]
[314711643,1708537845503,-500.0,0.00020784,2]
[314711644,1708537845514,-755.78,0.00020785,2]
[314711645,1708537845523,-500.0,0.00020785,2]
[314711646,1708537845533,-500.0,0.00020785,2]
[314711647,1708537845542,-500.0,0.00020785,2]
[314711648,1708537845551,-868.37,0.00020785,2]
[314711649,1708537845560,-378.96482233,0.00020785,2]
[314711650,1708537845570,-4085.86,0.00020785,2]
[314711651,1708537845578,-692.97,0.00020785,2]
[314711652,1708537845588,-3028.49,0.00020785,2]
[314711653,1708537845596,-500.0,0.00020785,2]
[314711654,1708537845605,-1779.16,0.00020785,2]
[314711655,1708537845614,-1273.98,0.00020785,2]
[314711656,1708537845627,-500.0,0.00020785,2]
[314711657,1708537845639,-500.0,0.00020785,2]
[314711658,1708537845651,-1666.62,0.00020785,2]
[314711659,1708537845662,-500.0,0.00020785,2]
[314711660,1708537845673,-951.99,0.00020785,2]
[314711661,1708537845687,-1132.46,0.00020785,2]
[314711662,1708537845698,-500.0,0.00020785,2]
[314711663,1708537845708,-2495.32,0.00020785,2]
[314711664,1708537845718,-500.0,0.00020785,2]
[314711665,1708537845729,-7833.34,0.00020785,2]
[314711666,1708537845741,-1034.38,0.00020785,2]
[314711667,1708537845752,-1299.51,0.00020785,2]
[314711668,1708537845766,-651.36,0.00020785,2]
[314711669,1708537845777,-8014.51,0.00020785,2]
[314711670,1708537845789,-5669.61,0.00020785,2]
[314711671,1708537845800,-711.14,0.00020785,2]
[314711672,1708537845810,-500.0,0.00020785,2]
[314711673,1708537845821,-3187.59,0.00020785,2]
[314711674,1708537845832,-544.24,0.00020786,2]
[314711676,1708537845843,-895.56,0.00020786,2]
[314711677,1708537845854,-530.29,0.00020786,2]
[314711678,1708537845865,-500.0,0.00020786,2]
[314711679,1708537845876,-500.0,0.00020786,2]
[314711680,1708537845885,-577.46,0.00020786,2]
[314711681,1708537845895,-500.0,0.00020786,2]
[314711682,1708537845906,-500.0,0.00020786,2]
[314711683,1708537845917,-1996.86,0.00020786,2]
[314711684,1708537845927,-513.87,0.00020786,2]
[314711685,1708537845938,-922.13,0.00020786,2]
[314711686,1708537845951,-500.0,0.00020786,2]
[314711687,1708537845963,-500.0,0.00020786,2]
[314711688,1708537845973,-500.0,0.00020786,2]
[314711689,1708537845984,-500.0,0.00020786,2]
[314711690,1708537845995,-500.0,0.00020786,2]
[314711691,1708537846008,-500.0,0.00020786,2]
[314711692,1708537846019,-1971.02,0.00020786,2]
[314711693,1708537846031,-994.12,0.00020786,2]
[314711694,1708537846041,-1164.22,0.00020786,2]
[314711695,1708537846051,-2416.78,0.00020786,2]
[314711696,1708537846061,-500.0,0.00020786,2]
[314711697,1708537846071,-500.0,0.00020786,2]
[314711698,1708537846083,-500.0,0.00020786,2]
[314711699,1708537846095,-500.0,0.00020786,2]
[314711700,1708537846106,-500.0,0.00020786,2]
[314711701,1708537846117,-500.0,0.00020786,2]
[314711702,1708537846129,-500.0,0.00020786,2]
[314711704,1708537846141,-1251.84,0.00020786,2]
[314711705,1708537846151,-500.0,0.00020786,2]
[314711706,1708537846163,-531.02,0.00020786,2]
[314711707,1708537846173,-500.0,0.00020787,2]
[314711708,1708537846184,-500.0,0.00020787,2]
[314711709,1708537846195,-153.0,0.000208,2]
[314711710,1708537846205,-200.4553765,0.000208,2]
[314711711,1708537846216,-153.0,0.000208,2]
[314711712,1708537846228,-153.0,0.000208,2]
[314711713,1708537846239,-153.0,0.000208,2]
[314711715,1708537846250,-153.0,0.000208,2]
[314711716,1708537846264,-153.0,0.000208,2]
[314711717,1708537846275,-500.0,0.00020822,2]
[314711718,1708537846286,-500.0,0.00020822,2]
[314711719,1708537846298,-211.1814399,0.00020822,2]
[314711720,1708537846309,-500.0,0.00020822,2]
[314711721,1708537846320,-1143.84319421,0.00020822,2]
[314711722,1708537846331,-500.0,0.00020822,2]
[314711723,1708537846342,-500.0,0.00020822,2]
[314711724,1708537846352,-263.93827966,0.00020822,2]
[314711725,1708537846362,-500.0,0.00020822,2]
[314711726,1708537846371,-500.0,0.00020822,2]
[314711727,1708537846381,-1143.84319421,0.00020822,2]
[314711728,1708537846391,-613.11808321,0.00020822,2]
[314711729,1708537846401,-500.0,0.00020822,2]
[314711730,1708537846412,-357.51163948,0.00020822,2]
[314711731,1708537846423,-500.0,0.00020822,2]
[314711732,1708537846434,-1143.84319421,0.00020822,2]
[314711733,1708537846444,-500.0,0.00020822,2]
[314711734,1708537846456,-618.11148125,0.00020822,2]
[314711735,1708537846467,-178.64130856,0.00020822,2]
[314711736,1708537846478,-1143.84319421,0.00020822,2]
[314711737,1708537846489,-500.0,0.00020822,2]
[314711738,1708537846500,-1143.84319421,0.00020822,2]
[314711739,1708537846514,-500.0,0.00020822,2]
[314711740,1708537846525,-500.0,0.00020822,2]
[314711741,1708537846535,-500.0,0.00020822,2]
[314711742,1708537846546,-1143.84319421,0.00020822,2]
[314711743,1708537846557,-500.0,0.00020822,2]
[314711744,1708537846567,-1143.84319421,0.00020822,2]
[314711745,1708537846578,-500.0,0.00020822,2]
[314711746,1708537846588,-500.0,0.00020822,2]
[314711747,1708537846598,-1143.84319421,0.00020822,2]
[314711748,1708537846608,-500.0,0.00020822,2]
[314711749,1708537846618,-500.0,0.00020822,2]
[314711750,1708537846628,-1143.84319421,0.00020822,2]
[314711751,1708537846639,-500.0,0.00020822,2]
[314711752,1708537846650,-1143.84319421,0.00020822,2]
[314711753,1708537846660,-233.02113716,0.00020822,2]
[314711754,1708537846670,-1143.84319421,0.00020822,2]
[314711755,1708537846681,-500.0,0.00020822,2]
[314711756,1708537846691,-1143.84319421,0.00020822,2]
[314711757,1708537846701,-1143.84319421,0.00020822,2]
[314711758,1708537846711,-500.0,0.00020822,2]
[314711759,1708537846721,-1143.84319421,0.00020822,2]
[314711760,1708537846731,-1143.84319421,0.00020822,2]
[314711761,1708537846742,-1143.84319421,0.00020822,2]
[314711762,1708537846752,-1143.84319421,0.00020822,2]
[314711763,1708537846767,-1143.84319421,0.00020822,2]
[314711764,1708537846777,-1143.84319421,0.00020822,2]
[314711765,1708537846787,-1143.84319421,0.00020822,2]
[314711766,1708537846797,-1143.84319421,0.00020822,2]
[314711767,1708537846807,-1143.84319421,0.00020822,2]
[314711768,1708537846818,-1143.84319421,0.00020822,2]
[314711769,1708537846828,-1143.84319421,0.00020822,2]
[314711770,1708537846838,-1143.84319421,0.00020822,2]
[314711771,1708537846848,-1143.84319421,0.00020822,2]
[314711772,1708537846858,-1143.84319421,0.00020822,2]
[314711773,1708537846868,-1143.84319421,0.00020822,2]
[314711774,1708537846878,-1143.84319421,0.00020822,2]
[314711775,1708537846888,-1143.84319421,0.00020822,2]
[314711776,1708537846898,-1143.84319421,0.00020822,2]
[314711777,1708537846908,-1143.84319421,0.00020822,2]
[314711778,1708537846918,-1143.84319421,0.00020822,2]
[314711779,1708537846928,-1143.84319421,0.00020822,2]
[314711780,1708537846937,-1143.84319421,0.00020822,2]
[314711781,1708537846947,-1143.84319421,0.00020822,2]
[314711782,1708537846957,-1143.84319421,0.00020822,2]
[314711783,1708537846967,-1143.84319421,0.00020822,2]
[314711784,1708537846977,-1143.84319421,0.00020822,2]
[314711785,1708537846987,-1143.84319421,0.00020822,2]
[314711786,1708537846997,-1143.84319421,0.00020822,2]
[314711787,1708537847009,-1143.84319421,0.00020822,2]
[314711788,1708537847019,-1143.84319421,0.00020822,2]
[314711789,1708537847028,-1143.84319421,0.00020822,2]
[314711790,1708537847038,-1143.84319421,0.00020822,2]
[314711791,1708537847048,-1143.84319421,0.00020822,2]
[314711792,1708537847058,-1143.84319421,0.00020822,2]
[314711793,1708537847068,-1143.84319421,0.00020822,2]
[314711794,1708537847078,-1143.84319421,0.00020822,2]
[314711795,1708537847087,-1143.84319421,0.00020822,2]
[314711796,1708537847097,-1143.84319421,0.00020822,2]
[314711797,1708537847107,-1143.84319421,0.00020822,2]
[314711798,1708537847117,-1143.84319421,0.00020822,2]
[314711799,1708537847126,-1143.84319421,0.00020822,2]
[314711800,1708537847136,-1143.84319421,0.00020822,2]
[314711801,1708537847145,-1143.84319421,0.00020822,2]
[314711802,1708537847155,-1143.84319421,0.00020822,2]
[314711803,1708537847165,-1123.04604523,0.00020822,2]
[314711804,1708537847175,-1123.04604523,0.00020822,2]
[314711805,1708537847185,-1123.04604523,0.00020822,2]
[314711806,1708537847194,-1123.04604523,0.00020822,2]
[314711807,1708537847204,-1123.04604523,0.00020822,2]
[314711808,1708537847214,-1123.04604523,0.00020822,2]
[314711809,1708537847223,-1123.04604523,0.00020822,2]
[314711810,1708537847233,-1123.04604523,0.00020822,2]
[314711811,1708537847242,-1123.04604523,0.00020822,2]
[314711812,1708537847252,-1123.04604523,0.00020822,2]
[314711813,1708537847264,-1123.04604523,0.00020822,2]
[314711814,1708537847273,-1123.04604523,0.00020822,2]
[314711815,1708537847283,-1123.04604523,0.00020822,2]
[314711816,1708537847293,-1123.04604523,0.00020822,2]
[314711817,1708537847303,-1123.04604523,0.00020822,2]
[314711818,1708537847313,-1123.04604523,0.00020822,2]
[314711819,1708537847322,-1123.04604523,0.00020822,2]
[314711820,1708537847332,-1123.04604523,0.00020822,2]
[314711821,1708537847343,-1123.04604523,0.00020822,2]
[314711822,1708537847353,-1123.04604523,0.00020822,2]
[314711823,1708537847363,-1123.04604523,0.00020822,2]
[314711824,1708537847373,-1123.04604523,0.00020822,2]
[314711825,1708537847384,-1123.04604523,0.00020822,2]
[314711826,1708537847394,-1123.04604523,0.00020822,2]
[314711827,1708537847403,-1123.04604523,0.00020822,2]
[314711828,1708537847414,-1123.04604523,0.00020822,2]
[314711829,1708537847424,-1123.04604523,0.00020822,2]
[314711830,1708537847434,-1123.04604523,0.00020822,2]
[314711831,1708537847444,-1123.04604523,0.00020822,2]
[314711832,1708537847454,-1123.04604523,0.00020822,2]
[314711833,1708537847623,-1123.04604523,0.00020822,2]
[314711834,1708537847639,-1206.2346412,0.00020822,2]
[314711835,1708537847652,-1206.2346412,0.00020822,2]
[314711836,1708537847662,-1206.2346412,0.00020822,2]
[314711837,1708537847671,-300.0,0.00020847,2]
[314711838,1708537847682,-300.0,0.00021015,2]
[314711839,1708537847691,-8225.6370858,0.00021049,2]
[314711840,1708537847702,-500.0,0.00021058,2]
[314711841,1708537847711,-755.78,0.00021059,2]
[314711842,1708537847721,-211.3974679,0.00021059,2]
[314711843,1708537847730,-500.0,0.00021059,2]
[314711844,1708537847740,-500.0,0.00021059,2]
[314711845,1708537847750,-868.37,0.00021059,2]
[314711846,1708537847762,-4085.86,0.00021059,2]
[314711847,1708537847771,-692.97,0.00021059,2]
[314711848,1708537847780,-3028.49,0.00021059,2]
[314711849,1708537847789,-500.0,0.00021059,2]
[314711850,1708537847799,-1779.16,0.00021059,2]
[314711851,1708537847808,-1273.98,0.00021059,2]
[314711852,1708537847817,-500.0,0.00021059,2]
[314711853,1708537847828,-500.0,0.00021059,2]
[314711854,1708537847838,-1666.62,0.00021059,2]
[314711855,1708537847848,-500.0,0.00021059,2]
[314711856,1708537847858,-951.99,0.00021059,2]
[314711857,1708537847868,-1132.46,0.00021059,2]
[314711858,1708537847878,-500.0,0.00021059,2]
[314711859,1708537847887,-2495.32,0.00021059,2]
[314711860,1708537847896,-500.0,0.00021059,2]
[314711861,1708537847907,-7833.34,0.00021059,2]
[314711862,1708537847917,-1034.38,0.00021059,2]
[314711863,1708537847926,-1299.51,0.00021059,2]
[314711864,1708537847936,-651.36,0.00021059,2]
[314711865,1708537847945,-5669.61,0.00021059,2]
[314711866,1708537847955,-711.14,0.00021059,2]
[314711867,1708537847964,-500.0,0.00021059,2]
[314711868,1708537847974,-3187.59,0.00021059,2]
[314711869,1708537847986,-544.24,0.0002106,2]
[314711870,1708537847995,-895.56,0.0002106,2]
[314711871,1708537848005,-530.29,0.0002106,2]
[314711872,1708537848015,-500.0,0.0002106,2]
[314711873,1708537848024,-536.44436664,0.0002106,2]
[314711874,1708537848034,-577.46,0.0002106,2]
[314711875,1708537848043,-500.0,0.0002106,2]
[314711876,1708537848053,-344.83317424,0.0002106,2]
[314711877,1708537848064,-1996.86,0.0002106,2]
[314711878,1708537848074,-513.87,0.0002106,2]
[314711879,1708537848084,-922.13,0.0002106,2]
[314711880,1708537848094,-500.0,0.0002106,2]
[314711881,1708537848103,-500.0,0.0002106,2]
[314711882,1708537848112,-500.0,0.0002106,2]
[314711883,1708537848120,-500.0,0.0002106,2]
[314711884,1708537848129,-500.0,0.0002106,2]
[314711885,1708537848138,-500.0,0.0002106,2]
[314711886,1708537848148,-1971.02,0.0002106,2]
[314711887,1708537848158,-994.12,0.0002106,2]
[314711888,1708537848167,-1164.22,0.0002106,2]
[314711889,1708537848176,-2416.78,0.0002106,2]
[314711890,1708537848185,-500.0,0.0002106,2]
[314711891,1708537848194,-500.0,0.0002106,2]
[314711892,1708537848203,-500.0,0.0002106,2]
[314711893,1708537848212,-500.0,0.0002106,2]
[314711894,1708537848221,-500.0,0.0002106,2]
[314711895,1708537848230,-243.8737381,0.0002106,2]
[314711896,1708537848239,-500.0,0.0002106,2]
[314711897,1708537848248,-1251.84,0.0002106,2]
[314711898,1708537848258,-500.0,0.0002106,2]
[314711899,1708537848267,-531.02,0.0002106,2]
[314711900,1708537848277,-500.0,0.00021061,2]
[314711901,1708537848286,-500.0,0.00021061,2]
[314711902,1708537848295,-153.0,0.000211,2]
[314711903,1708537848304,-300.0,0.00021184,2]
[314711904,1708537848314,-1000.0,0.0002121,2]
[314711905,1708537848322,-1000.0,0.0002121,2]
[314711906,1708537848331,-1000.0,0.0002121,2]
[314711907,1708537848340,-1000.0,0.0002121,2]
[314711908,1708537848351,-1000.0,0.0002121,2]
[314711909,1708537848360,-1000.0,0.0002121,2]
[314711910,1708537848370,-1000.0,0.0002121,2]
[314711911,1708537848379,-1000.0,0.0002121,2]
[314711912,1708537848389,-1000.0,0.0002121,2]
[314711913,1708537848398,-1000.0,0.0002121,2]
[314711914,1708537848407,-1000.0,0.0002121,2]
[314711915,1708537848416,-1000.0,0.0002121,2]
[314711916,1708537848425,-1000.0,0.0002121,2]
[314711917,1708537848434,-1000.0,0.0002121,2]
[314711918,1708537848443,-1000.0,0.0002121,2]
[314711919,1708537848453,-1000.0,0.0002121,2]
[314711920,1708537848462,-1000.0,0.0002121,2]
[314711921,1708537848471,-1000.0,0.0002121,2]
[314711922,1708537848480,-1000.0,0.0002121,2]
[314711923,1708537848489,-1000.0,0.0002121,2]
[314711924,1708537848499,-1000.0,0.0002121,2]
[314711925,1708537848510,-1000.0,0.0002121,2]
[314711926,1708537848519,-1000.0,0.0002121,2]
[314711927,1708537848528,-1000.0,0.0002121,2]
[314711928,1708537848537,-1000.0,0.0002121,2]
[314711929,1708537848546,-1000.0,0.0002121,2]
[314711930,1708537848555,-1000.0,0.0002121,2]
[314711931,1708537848566,-1000.0,0.0002121,2]
[314711932,1708537848575,-1000.0,0.0002121,2]
[314711933,1708537848584,-1000.0,0.0002121,2]
[314711934,1708537848594,-1000.0,0.00021214,2]
[314711935,1708537848604,-1000.0,0.00021214,2]